bitfinex-derivatives/quotes_ETHF0:USTF0_20250220
["timestamp","ask_amount","ask_price","bid_price","bid_amount"]
[1740063802030,2.27e-06,2729.4,2729.3,7.10779347]
[1740063802234,2.27e-06,2729.4,2729.3,11.00779347]
[1740063803838,2.27e-06,2729.4,2729.3,5.00768495]
[1740063804040,2.27e-06,2729.4,2729.3,8.19268495]
[1740063804339,2.27e-06,2729.4,2729.3,8.19168495]
[1740063804531,2.27e-06,2729.4,2729.3,5.00768495]
[1740063804732,2.27e-06,2729.4,2729.3,8.18881349]
[1740063805031,2.27e-06,2729.4,2729.1,3.7586]
[1740063805032,0.73265,2729.2,2729.1,3.2078]
[1740063805233,2.27e-06,2729.4,2729.1,3.2078]
[1740063805428,2.27e-06,2729.4,2729.3,0.73262]
[1740063805633,2.27e-06,2729.4,2729.3,7.98301063]
[1740063805839,2.27e-06,2729.4,2729.3,7.98295388]
[1740063806039,2.27e-06,2729.4,2729.3,11.00795388]
[1740063806836,2.27e-06,2729.4,2729.3,5.00795388]
[1740063807838,2.27e-06,2729.4,2729.3,5.00822676]
[1740063808532,2.27e-06,2729.4,2729.3,8.17822676]
[1740063808939,2.27e-06,2729.4,2729.3,14.17822676]
[1740063809135,0.5438,2730.9,2730.8,0.73222]
[1740063809437,0.5872,2731.2,2730.8,3.2078]
[1740063809637,0.5872,2731.2,2730.4,1.83083]
[1740063809638,0.5872,2731.2,2730.9,0.73217]
[1740063809937,0.5872,2731.2,2730.5,3.2078]
[1740063809938,3.795,2731.2,2730.5,5.03854]
[1740063810143,0.5872,2731.2,2730.8,3.2078]
[1740063810440,0.00550227,2731.3,2730.9,3.53906985]
[1740063810635,0.00550227,2731.3,2731.1,3.2078]
[1740063810840,0.00550227,2731.3,2731.2,0.73211]
[1740063811043,0.00550227,2731.3,2731.2,3.9]
[1740063811237,0.00550227,2731.3,2730.7,0.00550227]
[1740063811444,0.00550227,2731.3,2730.8,0.37581641]
[1740063811637,3.21330227,2731.3,2730.7,3.90550227]
[1740063811943,0.00550227,2731.3,2730.7,0.00550227]
[1740063812240,3.21330227,2731.3,2730.7,0.00550227]
[1740063812443,0.73218,2731.0,2730.7,0.73773227]
[1740063812639,0.73222,2730.8,2730.7,0.00550227]
[1740063812944,3.21330227,2731.3,2730.7,0.00550227]
[1740063813143,0.73216,2731.1,2730.7,0.00550227]
[1740063813439,3.21330227,2731.3,2731.1,0.73212]
[1740063813644,3.21330227,2731.3,2730.9,3.2078]
[1740063814145,3.21330227,2731.3,2730.7,3.16650227]
[1740063814343,3.21330227,2731.3,2730.8,0.37545272]
[1740063814546,3.21330227,2731.3,2730.7,0.00550227]
[1740063815140,0.00550227,2731.3,2731.2,0.73211]
[1740063815340,0.00550227,2731.3,2730.9,3.2078]
[1740063815341,0.00550227,2731.3,2731.1,0.73213]
[1740063815543,0.00550227,2731.3,2731.2,0.73211]
[1740063815844,0.00550227,2731.3,2730.9,6.3658]
[1740063816041,0.00550227,2731.3,2730.7,0.00550227]
[1740063816251,0.73218,2731.0,2730.8,0.73221]
[1740063816546,0.5908,2731.2,2730.7,0.00550227]
[1740063816742,0.73215,2731.1,2730.9,0.73218]
[1740063817042,3.7986,2731.2,2730.7,0.00550227]
[1740063817249,0.73218,2731.0,2730.8,0.7322]
[1740063817441,0.73215,2731.1,2730.7,0.00550227]
[1740063817646,0.73215,2731.1,2730.9,0.73217]
[1740063817842,0.5908,2731.2,2730.7,0.00550227]
[1740063818142,2.27e-06,2731.3,2731.1,3.2078]
[1740063818338,2.27e-06,2731.3,2731.2,4.2523871]
[1740063818848,2.27e-06,2731.3,2731.2,8.1523871]
[1740063819841,2.27e-06,2731.3,2731.2,14.15206908]
[1740063820945,2.27e-06,2731.3,2731.2,8.13506908]
[1740063821957,2.96,2732.7,2731.3,1.8302]
[1740063822144,3.2078,2733.1,2732.5,3.2078]
[1740063823045,0.73172,2732.7,2732.5,3.21329209]
[1740063823241,3.21329209,2733.1,2732.5,3.21329209]
[1740063823442,0.13145206,2762.5,2732.8,3.2078]
[1740063823443,0.73134,2734.1,2732.8,3.2078]
[1740063823652,0.73143,2733.8,2733.4,3.2078]
[1740063823949,0.7315,2733.5,2733.4,3.2078]
[1740063824146,1.1242,2733.7,2733.4,3.2078]
[1740063824347,0.7315,2733.5,2733.4,3.2078]
[1740063824554,1.1242,2733.7,2732.8,3.2078]
[1740063824555,7.1242,2733.7,2732.8,3.2078]
[1740063824748,0.73166,2732.9,2732.8,2.4273]
[1740063824953,6.3558,2733.2,2732.5,3.21329209]
[1740063825147,3.148,2733.2,2732.8,3.2078]
[1740063825354,6.3558,2733.2,2732.5,3.21329209]
[1740063826145,0.73174,2732.6,2732.5,3.21329209]
[1740063826553,6.3558,2733.2,2732.5,3.21329209]
[1740063826741,0.73174,2732.6,2732.5,3.21329209]
[1740063827950,3.2078,2732.8,2732.1,3.2078]
[1740063828250,3.2536,2732.7,2732.1,3.2078]
[1740063828547,0.73175,2732.6,2732.1,3.2078]
[1740063828751,0.73182,2732.3,2732.1,3.2078]
[1740063828947,6.2136,2732.7,2732.1,3.2078]
[1740063829147,3.2536,2732.7,2732.5,3.2078]
[1740063829352,3.2536,2732.7,2732.2,3.2078]
[1740063829353,0.73181,2732.4,2732.2,3.2078]
[1740063829545,0.12909209,2732.7,2732.2,3.2078]
[1740063830155,0.73182,2732.3,2732.2,3.2078]
[1740063831051,8.96,2732.3,2731.9,3.21329209]
[1740063831349,2.96,2732.3,2732.2,0.73184]
[1740063831650,3.2078,2734.0,2732.4,1.82945]
[1740063831851,0.73148,2733.6,2732.9,3.2078]
[1740063832051,0.1233,2733.9,2732.9,3.2078]
[1740063832354,0.73147,2733.6,2733.3,3.93934]
[1740063832554,0.1233,2733.9,2733.3,3.2078]
[1740063832754,0.1233,2733.9,2733.6,3.2078]
[1740063832954,0.12692045,2733.9,2733.6,3.93926]
[1740063833155,0.00362045,2733.9,2733.8,0.73142]
[1740063833556,0.00362045,2733.9,2733.7,0.73142]
[1740063833750,0.00362045,2733.9,2733.7,0.73143]
[1740063833951,0.00362045,2733.9,2733.6,3.2078]
[1740063835362,0.00362045,2733.9,2733.8,0.73142]
[1740063836062,3.2078,2735.1,2733.6,3.2078]
[1740063836256,0.73139,2733.9,2733.7,6.3388]
[1740063836461,3.2078,2734.3,2733.7,6.3388]
[1740063836662,0.73142,2733.8,2733.7,6.3388]
[1740063836968,1.82781,2734.9,2733.7,6.3388]
[1740063836969,2.96,2735.1,2733.7,6.3458]
[1740063837156,3.2078,2734.9,2734.1,3.2078]
[1740063837353,0.73116,2734.8,2734.4,0.73124]
[1740063837557,0.73119,2734.7,2734.3,0.73127]
[1740063837757,3.2078,2734.9,2734.2,0.73131]
[1740063838056,0.73131,2734.2,2734.1,3.20515428]
[1740063838565,0.73132,2734.2,2733.9,0.73137]
[1740063838756,3.2078,2734.6,2733.8,3.2078]
[1740063838962,3.2593,2734.8,2733.8,3.2078]
[1740063839162,0.73133,2734.2,2733.9,0.73138]
[1740063839557,0.73118,2734.7,2733.9,0.73138]
[1740063839958,0.73118,2734.7,2733.8,3.2078]
[1740063840166,0.1163,2734.8,2734.0,0.73135]
[1740063840365,0.7313,2734.3,2734.0,0.73135]
[1740063840657,3.2078,2735.3,2734.1,3.2078]
[1740063840860,5.03539,2735.3,2734.2,7.4866]
[1740063841058,3.2078,2735.0,2734.2,4.3556]
[1740063841259,3.2078,2735.0,2734.2,5.08689]
[1740063841460,3.2078,2734.5,2733.8,3.2078]
[1740063841657,0.73133,2734.2,2733.8,6.3388]
[1740063841858,1.82795,2734.7,2733.8,6.3388]
[1740063842066,5.03569,2734.8,2733.8,6.3348]
[1740063842257,0.7313,2734.3,2734.1,0.73134]
[1740063842457,0.73131,2734.2,2734.0,0.73134]
[1740063842656,7.99572,2734.8,2733.8,3.2078]
[1740063842657,3.2078,2734.5,2733.8,3.2078]
[1740063842867,0.73126,2734.4,2733.9,3.123]
[1740063843164,0.73135,2734.1,2733.9,3.85438]
[1740063843360,3.2078,2734.5,2733.9,3.123]
[1740063843554,0.73138,2734.0,2733.9,0.73139]
[1740063843760,6.1678,2734.8,2733.8,3.2078]
[1740063843962,3.2078,2734.8,2733.8,3.2078]
[1740063844156,0.73118,2734.7,2733.8,3.9392]
[1740063844456,1.82841,2734.0,2733.3,0.00549209]
[1740063844662,3.2078,2734.2,2733.3,0.00549209]
[1740063844961,3.2078,2734.8,2734.1,5.03611]
[1740063845163,3.2078,2735.6,2734.4,3.2078]
[1740063845362,0.73112,2735.0,2734.8,0.73114]
[1740063845563,3.2078,2735.6,2734.5,4.4418]
[1740063845767,3.2078,2735.6,2734.6,0.00549209]
[1740063845971,0.73118,2734.7,2734.6,0.00549209]
[1740063846267,3.3237,2735.7,2734.6,3.21329209]
[1740063846474,3.113,2735.6,2734.9,3.2078]
[1740063846665,0.7311,2735.0,2734.9,3.2078]
[1740063847066,3.2078,2735.7,2734.9,3.2078]
[1740063847365,3.2078,2736.1,2735.2,3.2078]
[1740063847567,3.107,2736.2,2735.2,3.2078]
[1740063847568,6.3148,2736.2,2735.2,3.2078]
[1740063847756,8.14179,2736.2,2735.2,3.2078]
[1740063848065,0.73094,2735.6,2735.3,0.731]
[1740063848269,8.14179,2736.2,2735.2,3.2078]
[1740063848270,0.02300022,2735.5,2735.2,3.2078]
[1740063848471,0.73102,2735.3,2735.2,3.2078]
[1740063848970,0.7311,2735.0,2734.9,3.2078]
[1740063849163,0.03675469,2735.0,2734.6,3.21329209]
[1740063849564,0.03675469,2735.0,2734.9,3.93892]
[1740063850066,0.05050932,2735.0,2734.9,3.2078]
[1740063850267,0.05050932,2735.0,2734.9,3.93892]
[1740063850568,3.2078,2736.6,2735.0,0.3664]
[1740063850765,3.2078,2737.0,2735.8,3.2078]
[1740063851063,0.242,2737.2,2735.8,6.3148]
[1740063851064,3.2078,2736.8,2735.8,6.3148]
[1740063851268,3.2078,2736.8,2736.1,0.00548125]
[1740063851461,0.73077,2736.2,2736.1,0.00548125]
[1740063852063,0.73077,2736.2,2734.7,1.82792]
[1740063852064,9.2078,2736.2,2735.1,3.2078]
[1740063852264,0.1657,2736.1,2735.1,3.2078]
[1740063852563,0.73087,2735.9,2735.6,0.73092]
[1740063852760,6.3128,2736.3,2735.4,3.2078]
[1740063852761,3.2078,2736.3,2735.5,0.5431]
[1740063852957,0.73093,2735.7,2735.5,0.5431]
[1740063853162,3.81855,2737.0,2735.5,0.5431]
[1740063853163,0.73094,2735.6,2735.5,0.5431]
[1740063853570,0.73099,2735.4,2735.3,0.00548125]
[1740063855062,6.0,2735.4,2734.8,1.115]
[1740063855266,0.73112,2734.9,2734.8,1.115]
[1740063855965,2.2265,2735.7,2734.8,1.115]
[1740063855966,3.123,2735.6,2734.8,1.115]
[1740063856165,5.4343,2735.7,2735.4,0.73097]
[1740063856371,3.2078,2735.7,2735.3,3.2078]
[1740063856772,3.93872,2735.7,2735.3,3.2078]
[1740063857071,3.2078,2735.7,2735.3,3.2078]
[1740063857374,0.73099,2735.4,2735.3,3.2078]
[1740063857567,0.00544513,2735.9,2735.3,3.2078]
[1740063857761,0.00544513,2735.9,2735.4,0.73097]
[1740063857967,0.00544513,2735.9,2735.8,0.73088]
[1740063858370,5.03434,2736.9,2735.7,1.1117]
[1740063858371,3.2078,2736.9,2735.7,1.1117]
[1740063858566,1.82655,2736.8,2736.0,3.2078]
[1740063858871,0.7308,2736.1,2736.0,3.2078]
[1740063859069,1.82654,2736.8,2736.0,3.2078]
[1740063859369,3.2078,2736.5,2735.7,1.1117]
[1740063859672,0.73088,2735.8,2735.7,1.1117]
[1740063859969,3.2078,2736.4,2735.7,0.5476]
[1740063860162,0.73088,2735.8,2735.7,3.7554]
[1740063860365,0.73088,2735.8,2735.7,0.5476]
[1740063860668,0.73094,2735.6,2735.5,0.00548125]
[1740063861274,6.73094,2735.6,2735.5,0.00548125]
[1740063861469,0.73094,2735.6,2735.5,0.00548125]
[1740063862068,3.2078,2735.8,2735.5,0.00548125]
[1740063862268,2.2265,2735.9,2735.5,0.00548125]
[1740063862477,0.73094,2735.6,2735.5,0.00548125]
[1740063863073,0.73094,2735.6,2735.5,0.73644125]
[1740063863270,0.73094,2735.6,2735.5,0.00548125]
[1740063863666,0.73092,2735.7,2735.5,0.73643125]
[1740063863868,5.4343,2735.9,2735.5,0.00548125]
[1740063864172,2.2265,2735.9,2735.7,0.73089]
[1740063864372,2.2265,2735.9,2735.5,3.21328125]
[1740063864867,0.73094,2735.6,2735.5,0.00548125]
[1740063866170,1.82707,2736.1,2735.5,0.00548125]
[1740063866171,3.2078,2736.1,2735.5,0.00548125]
[1740063866365,3.2078,2736.1,2735.5,3.21328125]
[1740063866668,3.2078,2736.1,2736.0,0.73083]
[1740063866870,3.2078,2736.1,2735.6,2.37095]
[1740063866871,3.2078,2736.1,2735.6,1.1014]
[1740063867068,3.2078,2736.4,2736.0,0.73081]
[1740063867270,0.73091,2735.7,2735.6,1.83232]
[1740063867472,4.05338,2736.3,2735.6,1.1014]
[1740063867670,0.73094,2735.6,2735.5,0.00548125]
[1740063868073,3.2078,2736.1,2735.5,3.21328125]
[1740063868273,1.82704,2736.1,2735.5,3.94423125]
[1740063868475,0.73094,2735.6,2735.5,0.00548125]
[1740063869579,0.73094,2735.6,2735.5,0.73644125]
[1740063869781,3.2078,2735.8,2735.5,0.00548125]
[1740063870177,0.73092,2735.7,2735.6,0.73092]
[1740063870483,0.73092,2735.7,2735.6,0.73091]
[1740063870685,0.73094,2735.6,2735.5,0.00548125]
[1740063870886,0.73092,2735.7,2735.6,0.73092]
[1740063871086,1.82703,2736.1,2735.5,0.00548125]
[1740063871381,3.3389,2736.2,2735.6,3.2078]
[1740063871580,3.2078,2736.2,2735.6,3.2078]
[1740063871977,3.074,2736.3,2735.6,3.2078]
[1740063872182,0.73084,2736.0,2735.9,0.73084]
[1740063872583,0.73087,2735.9,2735.8,0.73085]
[1740063873079,1.8269,2736.3,2735.6,3.2078]
[1740063873279,5.03474,2736.2,2735.5,0.00548125]
[1740063873485,0.73094,2735.6,2735.5,0.00548125]
[1740063875787,3.9387,2735.8,2735.5,0.00548125]
[1740063875992,3.051,2735.9,2735.5,0.00548125]
[1740063876190,3.2078,2736.1,2735.5,0.00548125]
[1740063876499,0.73089,2735.8,2735.7,0.73091]
[1740063876696,3.2078,2736.1,2735.5,0.00548125]
[1740063876899,3.6074,2736.2,2735.1,3.2078]
[1740063877201,0.73081,2736.1,2735.6,1.82735]
[1740063877397,3.2078,2736.1,2735.5,1.82735]
[1740063877590,0.73088,2735.8,2735.7,0.7309]
[1740063877894,1.82694,2736.2,2735.3,1.82753]
[1740063878106,1.82694,2736.2,2735.5,0.00548125]
[1740063878107,0.73094,2735.6,2735.5,0.00548125]
[1740063878489,0.73094,2735.6,2734.8,0.73114]
[1740063878490,1.82741,2735.5,2734.8,0.73114]
[1740063878797,3.2078,2735.2,2734.6,3.2078]
[1740063879095,0.73108,2735.1,2734.6,5.03575]
[1740063879288,3.2078,2735.4,2734.7,0.37298224]
[1740063879486,1.82741,2735.5,2735.0,0.73107]
[1740063879487,0.73108,2735.1,2735.0,0.73107]
[1740063879690,0.00548125,2735.3,2734.8,1.83332125]
[1740063879892,0.00548125,2735.3,2735.2,0.73104]
[1740063880295,0.00548125,2735.3,2734.9,3.2078]
[1740063880492,0.73652125,2735.3,2735.2,0.73104]
[1740063880904,0.73650125,2735.3,2735.2,0.73104]
[1740063881304,0.00548125,2735.3,2734.9,3.2078]
[1740063881491,0.00548125,2735.3,2734.8,0.00548125]
[1740063881804,0.7311,2735.0,2734.9,0.7311]
[1740063882097,0.7311,2735.0,2734.9,0.73112]
[1740063882303,0.7311,2735.0,2734.9,3.93892]
[1740063882502,0.00548125,2735.3,2734.8,0.00548125]
[1740063882706,0.73111,2735.0,2734.9,0.73111]
[1740063882897,0.73108,2735.1,2735.0,0.73108]
[1740063883207,0.00548125,2735.3,2734.8,0.00548125]
[1740063883405,0.00548125,2735.3,2735.2,0.73104]
[1740063883806,0.00548125,2735.3,2735.2,3.93884]
[1740063884109,3.2078,2736.7,2735.2,6.60778494]
[1740063884403,3.028,2736.8,2736.1,3.2078]
[1740063884603,3.029,2737.1,2736.4,3.2078]
[1740063884806,3.029,2737.1,2736.2,0.5739]
[1740063885001,0.7305,2737.3,2737.0,0.73055]
[1740063885202,3.027,2737.4,2736.7,3.2078]
[1740063885401,3.027,2737.4,2736.4,0.00548125]
[1740063885402,0.73069,2736.5,2736.4,0.00548125]
[1740063885799,6.0,2736.5,2735.6,3.9]
[1740063886104,3.2078,2736.1,2735.5,3.93875]
[1740063886306,3.026,2736.2,2735.8,3.2078]
[1740063886507,0.73091,2735.7,2735.5,7.1078]
[1740063886704,0.73091,2735.7,2735.4,0.73097]
[1740063886705,0.73093,2735.7,2735.4,0.73097]
[1740063886905,0.7309,2735.8,2735.5,3.93875]
[1740063887100,0.00548125,2735.9,2735.5,3.2078]
[1740063887504,0.00548125,2735.9,2735.3,0.55038125]
[1740063887707,0.73094,2735.6,2735.4,0.73099]
[1740063887901,0.73094,2735.6,2735.3,0.55038125]
[1740063888106,0.00548125,2735.9,2735.3,0.55038125]
[1740063888307,0.73099,2735.4,2735.3,0.55038125]
[1740063889013,0.00548125,2735.9,2735.3,0.55038125]
[1740063889309,0.00548125,2735.9,2735.8,0.73088]
[1740063891006,0.00548125,2735.9,2735.6,3.2078]
[1740063891207,0.00548125,2735.9,2735.8,0.73088]
[1740063892217,3.2078,2737.2,2735.8,3.003]
[1740063892412,3.003,2737.0,2736.3,0.73073]
[1740063892712,0.73072,2736.4,2736.3,0.73073]
[1740063892907,0.73072,2736.4,2736.2,0.73076]
[1740063893317,5.03428,2736.9,2735.8,6.2108]
[1740063893318,0.73084,2736.0,2735.8,6.2108]
[1740063893505,1.82674,2736.5,2735.9,0.73085]
[1740063893702,0.73084,2736.0,2735.8,3.93866]
[1740063893907,0.73086,2735.9,2735.8,3.2078]
[1740063894107,3.21328125,2736.6,2735.8,3.2078]
[1740063894807,0.00548125,2736.6,2736.1,3.2078]
[1740063895010,0.00548125,2736.6,2736.5,0.73069]
[1740063896807,0.00548125,2736.6,2736.2,3.7848]
[1740063897210,0.73616125,2736.6,2736.5,0.73069]
[1740063897407,0.00548125,2736.6,2736.2,3.7848]
[1740063898011,0.00548125,2736.6,2736.1,1.104]
[1740063898309,0.73077,2736.2,2736.1,1.104]
[1740063898514,1.82678,2736.5,2735.9,3.2078]
[1740063898708,0.73083,2736.0,2735.9,3.2078]
[1740063899108,1.82686,2736.4,2735.6,4.3252]
[1740063899109,3.2078,2736.3,2735.6,4.3252]
[1740063899308,0.73087,2735.9,2735.7,0.73089]
[1740063899512,1.82698,2736.2,2735.6,1.1174]
[1740063899712,0.7309,2735.8,2735.7,0.7309]
[1740063899910,3.2078,2736.3,2735.6,1.1174]
[1740063899911,1.82686,2736.4,2735.6,1.1174]
[1740063900211,0.00548125,2736.6,2735.9,3.2078]
[1740063900810,0.00548125,2736.6,2736.2,3.2078]
[1740063901008,0.00548125,2736.6,2736.5,3.93849]
[1740063901318,3.3798,2737.7,2736.5,3.2078]
[1740063901515,3.2078,2738.0,2737.2,3.2078]
[1740063901716,3.3798,2738.3,2737.9,3.2078]
[1740063901923,3.2078,2738.3,2737.5,6.2118]
[1740063902221,3.2078,2738.3,2737.6,0.5767]
[1740063902411,3.2078,2738.0,2737.6,0.58218125]
[1740063902906,0.00548125,2738.2,2737.6,0.58218125]
[1740063903111,0.73574125,2738.2,2737.8,3.93813]
[1740063903317,0.00548125,2738.2,2737.9,0.73029]
[1740063903516,0.00548125,2738.2,2737.8,3.2078]
[1740063903922,0.00548125,2738.2,2737.8,3.93814]
[1740063904118,0.00548125,2738.2,2737.8,3.2078]
[1740063904314,0.00548125,2738.2,2737.9,0.5655]
[1740063904522,0.01881999,2739.5,2737.9,0.5655]
[1740063904523,2.2265,2739.0,2738.1,3.2078]
[1740063904721,3.2078,2739.4,2738.5,3.2078]
[1740063905419,6.4011,2739.7,2738.5,3.7716]
[1740063905717,3.2078,2739.7,2738.8,3.2078]
[1740063906225,0.73002,2739.1,2739.0,0.00548125]
[1740063906417,3.2078,2739.7,2739.0,0.00548125]
[1740063906808,13.2078,2740.0,2739.2,3.2078]
[1740063907224,10.0,2740.0,2739.0,0.00548125]
[1740063907420,3.9378,2739.1,2739.0,0.00548125]
[1740063908019,0.73,2739.1,2739.0,0.00548125]
[1740063908210,3.9378,2739.1,2739.0,0.00548125]
[1740063909016,3.2078,2739.1,2739.0,0.00548125]
[1740063909223,3.9378,2739.1,2739.0,0.00548125]
[1740063910110,12.9458,2739.1,2739.0,1.25e-06]
[1740063911326,12.2158,2739.1,2737.6,0.5553]
[1740063911626,3.2078,2737.9,2737.6,0.5553]
[1740063911921,0.73037,2737.7,2737.6,0.5553]
[1740063912128,0.73046,2737.4,2737.2,0.5341]
[1740063912422,3.2078,2737.9,2737.3,0.73046]
[1740063912622,0.73589125,2737.6,2737.3,0.73046]
[1740063912822,0.00548125,2737.6,2737.2,0.5341]
[1740063913125,0.73048,2737.3,2737.2,0.5341]
[1740063913426,0.73053,2737.1,2737.0,0.00548125]
[1740063913724,3.2078,2737.3,2737.0,0.00548125]
[1740063913923,0.73053,2737.2,2737.0,0.00548125]
[1740063914123,0.00548125,2737.6,2737.5,0.73043]
[1740063914330,3.2078,2738.5,2737.5,6.2368]
[1740063914619,3.2078,2738.5,2737.6,1.7035]
[1740063915223,0.73037,2737.7,2737.6,1.1305]
[1740063915424,3.033,2738.4,2737.6,1.1305]
[1740063915821,3.2078,2738.5,2737.8,3.2078]
[1740063916027,3.2078,2739.0,2738.1,3.2078]
[1740063916224,20.256,2739.5,2738.7,3.2078]
[1740063916225,3.2078,2739.5,2738.7,3.2078]
[1740063916630,3.2078,2739.5,2738.8,0.5586]
[1740063917330,3.2078,2739.5,2739.0,0.73003]
[1740063917530,0.72993,2739.4,2739.0,0.73003]
[1740063917725,3.2078,2739.5,2738.9,0.73004]
[1740063917929,13.2078,2740.0,2739.0,3.2078]
[1740063918133,3.2078,2739.6,2738.8,3.5336]
[1740063918333,0.73005,2738.9,2738.8,0.5586]
[1740063918535,3.2078,2739.3,2738.8,0.5586]
[1740063919026,0.73005,2738.9,2738.8,0.5586]
[1740063919534,0.73005,2738.9,2738.6,0.00548125]
[1740063919535,3.2078,2739.3,2738.6,0.00548125]
[1740063919832,3.2078,2738.9,2738.6,0.00548125]
[1740063920040,3.026,2739.0,2738.6,0.00548125]
[1740063920335,3.031,2739.4,2738.6,3.21328125]
[1740063920524,6.2388,2739.6,2738.9,3.2078]
[1740063920730,0.72992,2739.5,2739.0,1.30782]
[1740063920937,6.2388,2739.6,2739.0,1.30782]
[1740063921238,6.2388,2739.6,2739.1,0.5864]
[1740063921537,0.72997,2739.2,2739.1,0.5864]
[1740063922333,6.2388,2739.6,2739.1,0.5864]
[1740063922640,6.96868,2739.6,2739.2,0.72996]
[1740063922833,0.72992,2739.4,2739.1,0.5864]
[1740063923034,0.72993,2739.4,2739.1,0.5864]
[1740063923235,3.2078,2739.6,2739.1,0.5864]
[1740063923634,0.72993,2739.4,2739.1,0.5864]
[1740063923826,0.72993,2739.4,2739.1,1.31639]
[1740063924133,3.2078,2739.6,2739.1,0.5864]
[1740063924332,0.72993,2739.4,2739.1,1.31638]
[1740063924533,3.2078,2739.6,2739.1,0.5864]
[1740063924930,0.72997,2739.2,2739.1,0.5864]
[1740063926137,0.73005,2739.0,2738.7,1.27161]
[1740063926328,3.2078,2739.3,2738.9,3.2078]
[1740063926525,3.2078,2739.3,2739.0,0.73002]
[1740063926526,3.93777,2739.3,2739.0,0.73002]
[1740063926732,0.72998,2739.2,2738.9,3.2078]
[1740063926926,0.7299,2739.5,2739.3,0.72995]
[1740063927135,6.2118,2739.7,2738.9,3.2078]
[1740063927636,0.72996,2739.3,2738.9,3.2078]
[1740063927935,8.03641,2739.7,2738.9,3.2078]
[1740063928141,0.72998,2739.2,2739.0,0.73003]
[1740063928333,0.72998,2739.2,2738.9,3.93783]
[1740063928935,0.72997,2739.3,2739.0,0.73003]
[1740063929126,0.72991,2739.5,2738.9,3.2078]
[1740063929333,3.2078,2739.7,2739.2,0.72996]
[1740063929635,0.72993,2739.4,2739.2,0.72996]
[1740063929836,0.72993,2739.4,2738.9,3.2078]
[1740063929837,3.2078,2739.7,2738.9,3.2078]
[1740063930035,0.72989,2739.6,2738.9,5.0329]
[1740063930341,0.72991,2739.5,2739.3,0.72993]
[1740063930540,0.72991,2739.5,2738.9,5.0329]
[1740063930541,16.1988,2740.0,2739.0,3.9]
[1740063930744,0.72994,2739.4,2739.2,0.72996]
[1740063931040,0.72995,2739.3,2739.1,0.72999]
[1740063931535,5.03246,2739.7,2738.9,3.2078]
[1740063931935,5.03246,2739.7,2739.1,0.72999]
[1740063932133,0.73001,2739.1,2739.0,0.73002]
[1740063932537,0.72998,2739.2,2739.0,0.73003]
[1740063932737,3.2078,2739.7,2738.9,3.2078]
[1740063932935,0.73003,2739.0,2738.9,3.2078]
[1740063933836,0.73011,2738.7,2738.6,0.00548125]
[1740063934034,1.82522,2738.8,2738.2,0.5476]
[1740063934239,0.73021,2738.3,2738.2,0.5476]
[1740063934446,2.975,2738.8,2738.2,0.5476]
[1740063934736,3.2078,2739.3,2738.2,3.7554]
[1740063934932,13.94681236,2740.0,2738.9,3.2078]
[1740063935137,16.2178,2740.0,2739.3,3.2078]
[1740063935340,0.00548125,2739.7,2739.0,1.6822]
[1740063935748,3.21328125,2739.7,2739.0,1.6822]
[1740063935931,0.00548125,2739.7,2739.0,6.71502]
[1740063936242,0.00548125,2739.7,2739.6,0.72987]
[1740063936446,0.00548125,2739.7,2739.3,5.03265]
[1740063936447,0.72988,2739.6,2739.3,3.2078]
[1740063936635,0.72988,2739.6,2739.4,0.72992]
[1740063936636,0.72987,2739.6,2739.4,0.72992]
[1740063936838,0.7299,2739.5,2739.3,3.93774]
[1740063937040,0.72996,2739.3,2739.0,2.41221]
[1740063937231,0.73,2739.1,2739.0,1.6822]
[1740063937438,3.21328125,2739.7,2739.0,1.6822]
[1740063937941,0.72996,2739.3,2739.0,2.41222]
[1740063938148,0.72993,2739.4,2739.1,0.72999]
[1740063938446,0.72993,2739.4,2739.1,0.72998]
[1740063938645,3.21328125,2739.7,2739.1,0.72998]
[1740063938848,0.72988,2739.6,2739.0,1.6822]
[1740063939047,0.72991,2739.5,2739.0,1.6822]
[1740063939346,3.21328125,2739.7,2739.0,1.6822]
[1740063939543,0.73,2739.1,2739.0,1.6822]
[1740063939748,3.2078,2739.4,2739.0,2.41222]
[1740063939749,0.72998,2739.2,2739.0,2.41222]
[1740063939947,3.2078,2739.4,2739.0,1.6822]
[1740063940248,3.9378,2739.1,2739.0,1.6822]
[1740063940436,0.73013,2738.6,2738.5,0.00548125]
[1740063941043,2.998,2738.9,2738.5,0.00548125]
[1740063941339,0.73013,2738.6,2738.5,0.00548125]
[1740063941742,6.0,2738.6,2737.6,2.975]
[1740063942043,0.73039,2737.7,2737.4,3.2078]
[1740063942241,3.003,2738.0,2737.3,0.5469]
[1740063942443,3.2078,2737.8,2736.9,5.07147]
[1740063942637,3.2078,2737.5,2736.9,4.3409]
[1740063942844,6.2088,2737.5,2736.9,3.2078]
[1740063943047,6.21428125,2737.5,2736.9,3.21328125]
[1740063943348,0.73056,2737.0,2736.9,0.00548125]
[1740063943544,3.001,2737.0,2736.3,3.2078]
[1740063944643,2.996,2737.1,2736.3,3.2078]
[1740063944842,2.996,2737.1,2736.4,0.00548125]
[1740063944843,3.72654,2737.1,2736.4,0.00548125]
[1740063945038,0.73051,2737.2,2736.7,0.73062]
[1740063945242,2.995,2737.2,2736.6,3.2078]
[1740063945447,2.995,2737.2,2736.7,0.5884]
[1740063945842,0.73058,2737.0,2736.7,0.5884]
[1740063946141,2.995,2737.2,2736.7,0.5884]
[1740063946342,0.7306,2736.9,2736.7,0.5884]
[1740063946549,2.995,2737.2,2736.7,0.5884]
[1740063946757,3.2078,2737.0,2736.4,0.00548125]
[1740063947047,0.73069,2736.5,2736.4,0.00548125]
[1740063947242,2.989,2736.7,2736.4,0.00548125]
[1740063947448,0.73069,2736.5,2736.4,0.00548125]